fUST/lending_fUST_20250725
["ID","MTS","AMOUNT","RATE_DAILY","PERIOD"]
[374651820,1753401042972,-460.0,0.00018651,2]
[374651821,1753401042982,-460.0,0.00018651,2]
[374651822,1753401042991,-460.0,0.00018651,2]
[374651823,1753401043001,-460.0,0.00018651,2]
[374651824,1753401043011,-1840.34,0.00018651,2]
[374651825,1753401043020,-460.0,0.00018651,2]
[374651826,1753401043030,-542.68,0.00018651,2]
[374651827,1753401043040,-460.0,0.00018651,2]
[374651828,1753401043050,-460.0,0.00018651,2]
[374651829,1753401043059,-460.0,0.00018651,2]
[374651830,1753401043069,-460.0,0.00018651,2]
[374651831,1753401043079,-460.0,0.00018651,2]
[374651832,1753401043089,-836.45,0.00018651,2]
[374651833,1753401043100,-460.0,0.00018651,2]
[374651834,1753401043110,-460.0,0.00018651,2]
[374651835,1753401043121,-460.0,0.00018651,2]
[374651836,1753401043131,-460.0,0.00018651,2]
[374651837,1753401043143,-500.0,0.00018651,2]
[374651838,1753401043154,-460.0,0.00018651,2]
[374651839,1753401043164,-605.21,0.00018651,2]
[374651840,1753401043174,-460.0,0.00018651,2]
[374651841,1753401043184,-460.0,0.00018651,2]
[374651842,1753401043193,-462.99682869,0.00018651,2]
[374651844,1753401043203,-460.0,0.00018651,2]
[374651846,1753401043213,-1607.54,0.00018651,2]
[374651848,1753401043223,-690.56,0.00018651,2]
[374651850,1753401043233,-2311.21,0.00018651,2]
[374651851,1753401043243,-460.0,0.00018651,2]
[374651852,1753401043253,-460.0,0.00018651,2]
[374651853,1753401043263,-808.62,0.00018651,2]
[374651855,1753401043272,-460.0,0.00018651,2]
[374651858,1753401043282,-586.24,0.00018651,2]
[374651859,1753401043292,-510.83,0.00018651,2]
[374651861,1753401043302,-2348.62,0.00018651,2]
[374651862,1753401043311,-237.06876321,0.00018651,2]
[374651864,1753401043321,-460.0,0.00018651,2]
[374651866,1753401043330,-802.59,0.00018651,2]
[374651868,1753401043340,-1028.98,0.00018651,2]
[374651870,1753401043350,-587.76,0.00018651,2]
[374651871,1753401043360,-460.0,0.00018651,2]
[374651872,1753401043369,-460.0,0.00018651,2]
[374651873,1753401043379,-460.0,0.00018651,2]
[374651874,1753401043390,-460.0,0.00018651,2]
[374651875,1753401043400,-3301.72,0.00018651,2]
[374651876,1753401043410,-494.9,0.00018651,2]
[374651877,1753401043419,-460.0,0.00018651,2]
[374651878,1753401043430,-460.0,0.00018651,2]
[374651879,1753401043443,-460.0,0.00018651,2]
[374651880,1753401043453,-3295.04,0.00018651,2]
[374651881,1753401043462,-460.0,0.00018651,2]
[374651882,1753401043472,-460.0,0.00018651,2]
[374651883,1753401043482,-460.0,0.00018651,2]
[374651884,1753401043492,-460.0,0.00018651,2]
[374651885,1753401043502,-887.29,0.00018651,2]
[374651887,1753401043512,-2315.49,0.00018651,2]
[374651889,1753401043522,-460.0,0.00018651,2]
[374651891,1753401043531,-460.0,0.00018651,2]
[374651893,1753401043541,-460.0,0.00018651,2]
[374651894,1753401043550,-2762.88,0.00018651,2]
[374651895,1753401043560,-460.0,0.00018651,2]
[374651896,1753401043569,-460.0,0.00018652,2]
[374651897,1753401043579,-460.0,0.00018652,2]
[374651898,1753401043588,-460.0,0.00018652,2]
[374651899,1753401043598,-460.0,0.00018652,2]
[374651900,1753401043607,-460.0,0.00018652,2]
[374651901,1753401043617,-463.91014658,0.00018652,2]
[374651902,1753401043627,-460.0,0.00018652,2]
[374651903,1753401043637,-460.0,0.00018652,2]
[374651904,1753401043647,-460.0,0.00018652,2]
[374651905,1753401043656,-460.84271961,0.00018652,2]
[374651906,1753401043666,-460.0,0.00018652,2]
[374651907,1753401043677,-460.0,0.00018652,2]
[374651908,1753401043686,-460.0,0.00018652,2]
[374651909,1753401043696,-171.35823705,0.00018652,2]
[374651910,1753401043706,-460.0,0.00018652,2]
[374651911,1753401043715,-460.0,0.00018652,2]
[374651912,1753401043725,-716.83,0.00018652,2]
[374651913,1753401043735,-460.0,0.00018652,2]
[374651914,1753401043745,-460.0,0.00018652,2]
[374651915,1753401043754,-460.0,0.00018652,2]
[374651916,1753401043764,-664.19,0.00018652,2]
[374651917,1753401043774,-755.41,0.00018652,2]
[374651918,1753401043783,-237.68890538,0.00018652,2]
[374651919,1753401043793,-460.0,0.00018652,2]
[374651920,1753401043803,-460.0,0.00018652,2]
[374651921,1753401043812,-371.2662023,0.00018652,2]
[374651922,1753401043822,-460.0,0.00018652,2]
[374651923,1753401043831,-460.0,0.00018652,2]
[374651925,1753401043841,-460.0,0.00018652,2]
[374651926,1753401043850,-460.0,0.00018652,2]
[374651927,1753401043859,-460.0,0.00018652,2]
[374651928,1753401043869,-460.0,0.00018652,2]
[374651929,1753401043879,-460.0,0.00018652,2]
[374651930,1753401043890,-461.32169173,0.00018652,2]
[374651931,1753401043900,-460.0,0.00018652,2]
[374651932,1753401043910,-460.0,0.00018652,2]
[374651933,1753401043920,-460.0,0.00018652,2]
[374651934,1753401043930,-460.0,0.00018652,2]
[374651935,1753401043940,-460.0,0.00018652,2]
[374651936,1753401043949,-460.0,0.00018652,2]
[374651937,1753401043959,-580.0,0.00018652,2]
[374651938,1753401043968,-460.0,0.00018652,2]
[374651939,1753401043978,-460.0,0.00018652,2]
[374651940,1753401043988,-394.52596481,0.00018652,2]
[374651941,1753401043997,-460.0,0.00018652,2]
[374651942,1753401044007,-460.0,0.00018652,2]
[374651943,1753401044017,-460.0,0.00018652,2]
[374651944,1753401044026,-460.0,0.00018652,2]
[374651945,1753401044036,-460.0,0.00018652,2]
[374651946,1753401044046,-460.0,0.00018652,2]
[374651947,1753401044056,-460.0,0.00018652,2]
[374651948,1753401044065,-460.0,0.00018652,2]
[374651949,1753401044075,-500.0,0.00018652,2]
[374651950,1753401044084,-500.0,0.00018652,2]
[374651951,1753401044093,-500.0,0.00018652,2]
[374651952,1753401044103,-500.0,0.00018652,2]
[374651953,1753401044114,-500.0,0.00018652,2]
[374651954,1753401044124,-515.63478357,0.00018652,2]
[374651955,1753401044134,-460.0,0.00018652,2]
[374651956,1753401044144,-246.76515755,0.00018652,2]
[374651957,1753401044153,-460.0,0.00018652,2]
[374651958,1753401044163,-460.0,0.00018652,2]
[374651960,1753401044173,-460.0,0.00018652,2]
[374651962,1753401044182,-224.46592327,0.00018652,2]
[374651963,1753401044192,-460.0,0.00018652,2]
[374651964,1753401044202,-460.0,0.00018652,2]
[374651965,1753401044212,-579.29204909,0.00018652,2]
[374651966,1753401044221,-460.0,0.00018652,2]
[374651967,1753401044232,-500.0,0.00018652,2]
[374651969,1753401044241,-460.0,0.00018652,2]
[374651971,1753401044251,-495.91,0.00018652,2]
[374651973,1753401044260,-460.0,0.00018652,2]
[374651975,1753401044269,-460.0,0.00018652,2]
[374651976,1753401044278,-460.0,0.00018652,2]
[374651977,1753401044288,-463.38054723,0.00018652,2]
[374651978,1753401044298,-460.0,0.00018652,2]
[374651979,1753401044308,-460.0,0.00018652,2]
[374651980,1753401044318,-460.0,0.00018652,2]
[374651981,1753401044328,-460.0,0.00018652,2]
[374651982,1753401044337,-808.56,0.00018652,2]
[374651983,1753401044347,-460.0,0.00018652,2]
[374651987,1753401044443,-460.0,0.00018652,2]
[374651988,1753401044458,-460.0,0.00018652,2]
[374651989,1753401044468,-460.0,0.00018652,2]
[374651990,1753401044477,-460.0,0.00018652,2]
[374651991,1753401044487,-460.0,0.00018652,2]
[374651992,1753401044497,-460.0,0.00018652,2]
[374651993,1753401044506,-464.14171003,0.00018652,2]
[374651994,1753401044516,-460.0,0.00018652,2]
[374651995,1753401044526,-460.0,0.00018652,2]
[374651996,1753401044536,-460.0,0.00018652,2]
[374651997,1753401044546,-460.0,0.00018652,2]
[374651998,1753401044555,-460.0,0.00018652,2]
[374651999,1753401044565,-460.0,0.00018652,2]
[374652000,1753401044575,-460.0,0.00018652,2]
[374652001,1753401044585,-461.73710452,0.00018652,2]
[374652002,1753401044594,-460.68969787,0.00018652,2]
[374652003,1753401044604,-460.0,0.00018652,2]
[374652004,1753401044614,-460.0,0.00018652,2]
[374652005,1753401044624,-460.0,0.00018652,2]
[374652006,1753401044633,-1091.91,0.00018652,2]
[374652007,1753401044644,-1116.56,0.00018652,2]
[374652008,1753401044653,-500.0,0.00018673,2]
[374652009,1753401044663,-153.55953673,0.00018673,2]
[374652010,1753401044672,-500.0,0.00018673,2]
[374652011,1753401044681,-500.0,0.00018673,2]
[374652012,1753401044691,-550.62518085,0.00018673,2]
[374652013,1753401044700,-1524.73887318,0.00018746,2]
[374652014,1753401044710,-215.0738,0.00018748,2]
[374652015,1753401044720,-3801.642,0.00018748,2]
[374652016,1753401044730,-460.0,0.0001875,2]
[374652017,1753401044739,-460.0,0.0001875,2]
[374652018,1753401044749,-460.0,0.0001875,2]
[374652019,1753401044758,-460.0,0.0001875,2]
[374652020,1753401044767,-460.0,0.0001875,2]
[374652021,1753401044777,-460.0,0.0001875,2]
[374652022,1753401044786,-460.0,0.0001875,2]
[374652023,1753401044796,-460.0,0.0001875,2]
[374652024,1753401044805,-460.0,0.0001875,2]
[374652025,1753401044815,-460.0,0.0001875,2]
[374652026,1753401044824,-460.0,0.0001875,2]
[374652027,1753401044834,-460.0,0.0001875,2]
[374652028,1753401044844,-460.0,0.0001875,2]
[374652029,1753401044853,-672.72,0.0001875,2]
[374652030,1753401044863,-460.0,0.0001875,2]
[374652031,1753401044872,-460.0,0.0001875,2]
[374652032,1753401044882,-460.0,0.0001875,2]
[374652033,1753401044892,-460.0,0.0001875,2]
[374652034,1753401044903,-460.0,0.00018751,2]
[374652035,1753401044912,-460.0,0.00018751,2]
[374652036,1753401044922,-243.10649563,0.00018751,2]
[374652037,1753401044931,-460.0,0.00018751,2]
[374652038,1753401044941,-460.0,0.00018751,2]
[374652039,1753401044950,-17264.72292697,0.00018751,2]
[374652040,1753401044960,-281.31778873,0.00018752,2]
[374652041,1753401044969,-460.0,0.00018752,2]
[374652042,1753401044979,-460.0,0.00018752,2]
[374652043,1753401044988,-460.0,0.00018752,2]
[374652044,1753401044998,-460.0,0.00018752,2]
[374652045,1753401045007,-460.0,0.00018752,2]
[374652046,1753401045017,-461.87358625,0.00018752,2]
[374652047,1753401045027,-460.0,0.00018752,2]
[374652048,1753401045037,-460.0,0.00018752,2]
[374652049,1753401045047,-460.0,0.00018752,2]
[374652050,1753401045056,-460.0,0.00018752,2]
[374652051,1753401045065,-460.2,0.00018752,2]
[374652052,1753401045075,-3796.19437779,0.00018803,2]
[374652053,1753401045085,-460.0,0.00018817,2]
[374652054,1753401045094,-332.59587824,0.00018817,2]
[374652055,1753401045105,-460.0,0.00018817,2]
[374652056,1753401045114,-460.0,0.00018817,2]
[374652057,1753401045124,-590.39,0.00018817,2]
[374652058,1753401045133,-460.0,0.00018817,2]
[374652059,1753401045144,-400.0,0.00018817,2]
[374652060,1753401045153,-702.6,0.00018817,2]
[374652061,1753401045163,-2406.45,0.00018817,2]
[374652062,1753401045172,-478.79,0.00018817,2]
[374652063,1753401045182,-473.10527247,0.00018817,2]
[374652064,1753401045191,-460.0,0.00018817,2]
[374652065,1753401045201,-745.75,0.00018817,2]
[374652066,1753401045210,-500.55402568,0.00018817,2]
[374652067,1753401045220,-433.11448597,0.00018817,2]
[374652068,1753401045230,-460.0,0.00018817,2]
[374652069,1753401045239,-466.1381054,0.00018819,2]
[374652070,1753401045250,-460.0,0.00018819,2]
[374652071,1753401045259,-707.67,0.00018819,2]
[374652072,1753401045270,-460.0,0.00018819,2]
[374652073,1753401045280,-460.0,0.00018819,2]
[374652074,1753401045291,-460.0,0.00018819,2]
[374652075,1753401045301,-215.92478924,0.00018819,2]
[374652076,1753401045312,-460.0,0.00018819,2]
[374652077,1753401045323,-460.0,0.00018819,2]
[374652078,1753401045334,-7096.14,0.00018819,2]
[374652079,1753401045344,-460.0,0.00018819,2]
[374652080,1753401045355,-464.31041019,0.00018819,2]
[374652081,1753401045366,-460.0,0.00018819,2]
[374652082,1753401045376,-3528.52,0.00018819,2]
[374652083,1753401045386,-460.0,0.00018819,2]
[374652084,1753401045396,-460.0,0.00018819,2]
[374652085,1753401045406,-460.0,0.00018819,2]
[374652086,1753401045415,-997.71,0.00018819,2]
[374652087,1753401045425,-460.0,0.00018819,2]
[374652088,1753401045436,-810.51,0.00018819,2]
[374652089,1753401045446,-460.0,0.00018819,2]
[374652090,1753401045455,-3531.67,0.00018819,2]
[374652091,1753401045465,-3121.86,0.00018819,2]
[374652092,1753401045475,-460.0,0.00018819,2]
[374652093,1753401045486,-460.0,0.00018819,2]
[374652094,1753401045497,-207.75963654,0.00018819,2]
[374652095,1753401045507,-875.44,0.00018819,2]
[374652096,1753401045516,-460.0,0.00018819,2]
[374652097,1753401045527,-2551.42,0.00018819,2]
[374652098,1753401045536,-460.0,0.00018819,2]
[374652099,1753401045546,-460.0,0.00018819,2]
[374652100,1753401045556,-1053.69,0.00018819,2]
[374652101,1753401045565,-460.0,0.00018819,2]
[374652102,1753401045575,-460.0,0.00018819,2]
[374652103,1753401045584,-468.68120064,0.0001882,2]
[374652104,1753401045594,-460.0,0.0001882,2]
[374652105,1753401045603,-468.96038787,0.0001882,2]
[374652106,1753401045613,-460.0,0.0001882,2]
[374652107,1753401045623,-460.0,0.0001882,2]
[374652108,1753401045633,-460.0,0.0001882,2]
[374652109,1753401045644,-460.0,0.0001882,2]
[374652110,1753401045653,-460.0,0.0001882,2]
[374652111,1753401045663,-460.0,0.00018821,2]
[374652112,1753401045673,-460.0,0.00018821,2]
[374652113,1753401045682,-460.0,0.00018821,2]
[374652114,1753401045691,-460.0,0.00018821,2]
[374652115,1753401045702,-460.0,0.00018821,2]
[374652116,1753401045711,-460.0,0.00018821,2]
[374652117,1753401045722,-460.0,0.00018821,2]
[374652118,1753401045731,-460.0,0.00018821,2]
[374652119,1753401045740,-460.0,0.00018821,2]
[374652120,1753401045750,-467.04633324,0.00018821,2]
[374652121,1753401045759,-460.0,0.00018821,2]
[374652122,1753401045769,-460.0,0.00018821,2]
[374652123,1753401045779,-460.0,0.00018821,2]
[374652124,1753401045789,-460.0,0.00018821,2]
[374652125,1753401045799,-302.23559407,0.00018821,2]
[374652126,1753401045809,-469.82689263,0.00018821,2]
[374652127,1753401045819,-776.37,0.00018821,2]
[374652128,1753401045828,-460.0,0.00018821,2]
[374652129,1753401045838,-619.26,0.00018821,2]
[374652130,1753401045847,-460.0,0.00018821,2]
[374652131,1753401045857,-460.0,0.00018821,2]
[374652132,1753401045866,-986.71,0.00018821,2]
[374652133,1753401045876,-460.0,0.00018821,2]
[374652134,1753401045886,-649.44,0.00018821,2]
[374652135,1753401045896,-460.0,0.00018821,2]
[374652136,1753401045906,-911.22,0.00018821,2]
[374652137,1753401045916,-460.0,0.00018821,2]
[374652138,1753401045926,-779.76,0.00018821,2]
[374652139,1753401045935,-1391.18,0.00018821,2]
[374652140,1753401045945,-460.0,0.00018821,2]
[374652141,1753401045955,-460.0,0.00018821,2]
[374652142,1753401045965,-460.0,0.00018821,2]
[374652143,1753401045974,-787.16,0.00018821,2]
[374652144,1753401045984,-460.0,0.00018821,2]
[374652145,1753401045995,-2617.62,0.00018821,2]
[374652146,1753401046005,-460.0,0.00018821,2]
[374652147,1753401046015,-460.0,0.00018821,2]
[374652148,1753401046025,-460.0,0.00018821,2]
[374652149,1753401046034,-460.0,0.00018821,2]
[374652150,1753401046044,-460.0,0.00018821,2]
[374652151,1753401046053,-1095.41,0.00018821,2]
[374652152,1753401046145,-552.46,0.00018821,2]
[374652153,1753401046155,-460.0,0.00018821,2]
[374652154,1753401046164,-460.0,0.00018821,2]
[374652155,1753401046174,-465.25,0.00018821,2]
[374652156,1753401046184,-1183.67,0.00018821,2]
[374652157,1753401046195,-1440.29,0.00018821,2]
[374652158,1753401046205,-596.42531374,0.00018821,2]
[374652159,1753401046214,-460.0,0.00018821,2]
[374652160,1753401046224,-460.0,0.00018821,2]
[374652161,1753401046233,-738.66,0.00018821,2]
[374652162,1753401046243,-460.0,0.00018821,2]
[374652164,1753401046253,-460.0,0.00018821,2]
[374652165,1753401046262,-322.77251409,0.00018821,2]
[374652166,1753401046272,-460.0,0.00018821,2]
[374652167,1753401046282,-460.0,0.00018821,2]
[374652168,1753401046292,-460.0,0.00018821,2]
[374652170,1753401046303,-460.0,0.00018821,2]
[374652171,1753401046312,-460.0,0.00018821,2]
[374652172,1753401046322,-460.0,0.00018821,2]
[374652173,1753401046331,-460.0,0.00018821,2]
[374652174,1753401046341,-460.0,0.00018821,2]
[374652175,1753401046351,-503.11,0.00018821,2]
[374652176,1753401046361,-460.0,0.00018821,2]
[374652177,1753401046371,-738.2,0.00018821,2]
[374652179,1753401046380,-460.0,0.00018821,2]
[374652180,1753401046389,-532.71,0.00018821,2]
[374652181,1753401046400,-460.0,0.00018821,2]
[374652182,1753401046409,-1543.86,0.00018821,2]
[374652183,1753401046421,-460.0,0.00018822,2]
[374652184,1753401046431,-460.0,0.00018822,2]
[374652185,1753401046445,-500.0,0.00018824,2]
[374652186,1753401046460,-460.0,0.00018824,2]
[374652187,1753401046470,-683.84,0.00018824,2]
[374652188,1753401046480,-460.0,0.00018824,2]
[374652189,1753401046489,-1048.65962984,0.00018824,2]
[374652190,1753401046499,-460.0,0.00018824,2]
[374652191,1753401046508,-367.70836422,0.00018824,2]
[374652192,1753401046521,-460.0,0.00018824,2]
[374652193,1753401046530,-460.0,0.00018824,2]
[374652194,1753401046539,-1556.96,0.00018824,2]
[374652195,1753401046550,-1197.85,0.00018824,2]
[374652196,1753401046560,-517.5,0.00018824,2]
[374652197,1753401046570,-460.0,0.00018824,2]
[374652198,1753401046580,-554.23,0.00018824,2]
[374652199,1753401046590,-976.57,0.00018824,2]
[374652200,1753401046601,-823.75,0.00018824,2]
[374652201,1753401046612,-1147.02,0.00018824,2]
[374652202,1753401046624,-577.94,0.00018824,2]
[374652204,1753401046634,-1434.4,0.00018824,2]
[374652206,1753401046645,-6244.15,0.00018824,2]
[374652208,1753401046654,-460.0,0.00018824,2]
[374652210,1753401046663,-460.0,0.00018923,2]
[374652212,1753401046673,-460.0,0.00018923,2]
[374652214,1753401046683,-460.0,0.00018923,2]
[374652216,1753401046693,-460.0,0.00018923,2]
[374652218,1753401046702,-461.96630106,0.00018923,2]
[374652220,1753401046712,-460.0,0.00018923,2]
[374652222,1753401046721,-460.0,0.00018923,2]
[374652224,1753401046730,-460.0,0.00018923,2]
[374652226,1753401046740,-479.39154465,0.00018923,2]
[374652227,1753401046749,-460.0,0.00018923,2]
[374652230,1753401046760,-454.22560304,0.00018923,2]
[374652231,1753401046771,-460.0,0.00018923,2]
[374652234,1753401046781,-662.7,0.00018923,2]
[374652236,1753401046791,-294.40824055,0.00018923,2]
[374652238,1753401046801,-460.0,0.00018923,2]
[374652239,1753401046810,-460.0,0.00018923,2]
[374652241,1753401046820,-460.0,0.00018923,2]
[374652243,1753401046830,-460.0,0.00018923,2]
[374652245,1753401046839,-460.0,0.00018923,2]
[374652248,1753401046849,-225.48440026,0.00018923,2]
[374652249,1753401046860,-460.0,0.00018923,2]
[374652251,1753401046869,-471.83048271,0.00018923,2]
[374652253,1753401046879,-375.43031438,0.00018923,2]
[374652256,1753401046890,-460.0,0.00018923,2]
[374652258,1753401046900,-460.0,0.00018923,2]
[374652260,1753401046910,-460.0,0.00018923,2]
[374652262,1753401046920,-737.78,0.00018923,2]
[374652264,1753401046931,-699.99,0.00018923,2]
[374652266,1753401046941,-460.0,0.00018923,2]
[374652268,1753401046951,-460.0,0.00018923,2]
[374652270,1753401046961,-460.0,0.00018923,2]
[374652272,1753401046970,-460.0,0.00018923,2]
[374652274,1753401046979,-934.84,0.00018923,2]
[374652276,1753401046989,-460.0,0.00018923,2]
[374652278,1753401046998,-468.73722291,0.00018923,2]
[374652280,1753401047007,-460.0,0.00018923,2]
[374652282,1753401047017,-1052.61,0.00018923,2]
[374652284,1753401047026,-161.9747577,0.00018923,2]
[374652286,1753401047036,-460.0,0.00018923,2]
[374652288,1753401047045,-467.13,0.00018923,2]
[374652290,1753401047055,-460.0,0.00018923,2]
[374652292,1753401047064,-704.04,0.00018923,2]
[374652294,1753401047074,-460.0,0.00018923,2]
[374652296,1753401047083,-460.0,0.00018923,2]
[374652298,1753401047092,-743.92,0.00018923,2]
[374652300,1753401047101,-961.48,0.00018923,2]
[374652302,1753401047111,-460.0,0.00018923,2]
[374652304,1753401047120,-460.0,0.00018923,2]
[374652306,1753401047130,-460.0,0.00018923,2]
[374652308,1753401047139,-756.95,0.00018923,2]
[374652310,1753401047150,-460.0,0.00018923,2]
[374652312,1753401047159,-460.0,0.00018923,2]
[374652314,1753401047169,-460.0,0.00018923,2]
[374652316,1753401047178,-1291.86,0.00018923,2]
[374652318,1753401047187,-460.0,0.00018923,2]
[374652320,1753401047196,-460.0,0.00018923,2]
[374652322,1753401047205,-460.0,0.00018923,2]
[374652324,1753401047215,-460.0,0.00018923,2]
[374652326,1753401047224,-460.0,0.00018923,2]
[374652328,1753401047233,-460.0,0.00018923,2]
[374652330,1753401047243,-460.0,0.00018923,2]
[374652332,1753401047252,-1267.48,0.00018923,2]
[374652334,1753401047262,-460.0,0.00018923,2]
[374652336,1753401047271,-460.0,0.00018923,2]
[374652338,1753401047282,-460.0,0.00018923,2]
[374652340,1753401047298,-460.0,0.00018923,2]
[374652342,1753401047310,-460.0,0.00018923,2]
[374652343,1753401047320,-560.33,0.00018923,2]
[374652344,1753401047329,-460.0,0.00018923,2]
[374652345,1753401047339,-460.0,0.00018923,2]
[374652346,1753401047349,-460.0,0.00018923,2]
[374652347,1753401047358,-460.0,0.00018923,2]
[374652348,1753401047368,-472.67072794,0.00018923,2]
[374652349,1753401047377,-460.0,0.00018923,2]
[374652350,1753401047387,-460.0,0.00018923,2]
[374652351,1753401047399,-460.0,0.00018923,2]
[374652352,1753401047408,-460.0,0.00018923,2]
[374652353,1753401047418,-591.04,0.00018923,2]
[374652354,1753401047427,-460.0,0.00018923,2]
[374652355,1753401047440,-460.0,0.00018923,2]
[374652356,1753401047450,-460.0,0.00018923,2]
[374652357,1753401047459,-537.65,0.00018923,2]
[374652358,1753401047469,-572.48,0.00018923,2]
[374652359,1753401047478,-460.0,0.00018923,2]
[374652360,1753401047488,-483.29,0.00018923,2]
[374652361,1753401047497,-460.0,0.00018923,2]
[374652362,1753401047506,-460.0,0.00018923,2]
[374652363,1753401047515,-151.0,0.00018923,2]
[374652364,1753401047525,-460.0,0.00018923,2]
[374652365,1753401047535,-1230.85,0.00018923,2]
[374652366,1753401047545,-519.10595794,0.00018923,2]
[374652367,1753401047554,-1112.94,0.00018923,2]
[374652368,1753401047563,-460.0,0.00018923,2]
[374652369,1753401047573,-460.0,0.00018923,2]
[374652370,1753401047582,-538.59,0.00018923,2]
[374652371,1753401047591,-151.0,0.00018923,2]
[374652372,1753401047603,-460.0,0.00018923,2]
[374652373,1753401047612,-650.3,0.00018923,2]
[374652374,1753401047622,-460.0,0.00018923,2]
[374652375,1753401047631,-151.0,0.00018923,2]
[374652376,1753401047641,-460.0,0.00018923,2]
[374652377,1753401047653,-278.4946,0.00018923,2]
[374652378,1753401047741,-151.0,0.00018923,2]
[374652379,1753401047752,-460.0,0.00018923,2]
[374652380,1753401047761,-172.36816867,0.00018923,2]
[374652381,1753401047771,-460.0,0.00018923,2]
[374652382,1753401047780,-151.0,0.00018923,2]
[374652383,1753401047789,-151.0,0.00018923,2]
[374652384,1753401047799,-460.0,0.00018923,2]
[374652385,1753401047808,-466.05836016,0.00018923,2]
[374652386,1753401047817,-460.0,0.00018923,2]
[374652387,1753401047827,-460.0,0.00018923,2]
[374652388,1753401047836,-151.0,0.00018923,2]
[374652389,1753401047845,-151.0,0.00018923,2]
[374652390,1753401047855,-460.0,0.00018923,2]
[374652391,1753401047865,-460.0,0.00018923,2]
[374652392,1753401047875,-1210.61,0.00018924,2]
[374652393,1753401047884,-3833.04,0.00018924,2]
[374652394,1753401047897,-460.0,0.00018924,2]
[374652395,1753401047906,-3180.14,0.00018924,2]
[374652396,1753401047916,-460.0,0.00018924,2]
[374652397,1753401047925,-460.0,0.00018925,2]
[374652398,1753401047935,-460.0,0.00018925,2]
[374652399,1753401047945,-460.0,0.00018925,2]
[374652400,1753401047955,-460.0,0.00018925,2]
[374652401,1753401047965,-287.48545531,0.00018925,2]
[374652402,1753401047975,-460.0,0.00018925,2]
[374652403,1753401047985,-590.18340738,0.00018925,2]
[374652404,1753401047995,-430.22218926,0.00018925,2]
[374652405,1753401048004,-460.0,0.00018925,2]
[374652406,1753401048014,-479.91989211,0.00018925,2]
[374652407,1753401048023,-460.0,0.00018925,2]
[374652408,1753401048034,-1840.34,0.00018925,2]
[374652409,1753401048055,-460.0,0.00018925,2]
[374652411,1753401048068,-542.68,0.00018925,2]
[374652413,1753401048077,-460.0,0.00018925,2]
[374652415,1753401048087,-460.0,0.00018925,2]
[374652416,1753401048103,-836.45,0.00018925,2]
[374652417,1753401048121,-460.0,0.00018925,2]
[374652418,1753401048131,-460.0,0.00018925,2]
[374652419,1753401048140,-460.0,0.00018925,2]
[374652420,1753401048152,-460.0,0.00018925,2]
[374652422,1753401048162,-605.21,0.00018925,2]